bitfinex-derivatives/quotes_BTCF0:USTF0_20241023
["timestamp","ask_amount","ask_price","bid_price","bid_amount"]
[1729707158088,0.01643015,65589.0,65581.0,0.26]
[1729707158372,0.076314,65587.0,65586.0,0.076315]
[1729707158576,0.076311,65590.0,65588.0,0.076312]
[1729707158783,0.076315,65587.0,65585.0,0.076316]
[1729707159172,0.076315,65587.0,65586.0,0.076315]
[1729707159368,0.21321167,65592.0,65581.0,0.4581]
[1729707159369,0.07631,65591.0,65581.0,0.4581]
[1729707159580,0.07631,65591.0,65590.0,0.076311]
[1729707160078,0.076313,65588.0,65586.0,0.076315]
[1729707160275,0.076313,65588.0,65587.0,0.076314]
[1729707160470,0.076309,65592.0,65591.0,0.07631]
[1729707160977,0.01673028,65593.0,65585.0,0.18]
[1729707161179,0.076311,65590.0,65587.0,0.076314]
[1729707161481,0.076311,65590.0,65589.0,0.076312]
[1729707162981,0.18,65591.0,65590.0,0.076311]
[1729707163278,0.076309,65592.0,65591.0,0.076309]
[1729707163481,0.21080086,65629.0,65589.0,0.18]
[1729707163482,0.076305,65596.0,65589.0,0.18]
[1729707163682,0.076305,65596.0,65581.0,0.1981]
[1729707163683,0.076306,65594.0,65593.0,0.18]
[1729707163985,0.076303,65597.0,65596.0,0.076304]
[1729707165388,0.273297,65603.0,65600.0,0.076299]
[1729707165577,0.076299,65601.0,65600.0,0.076299]
[1729707165777,0.0763,65599.0,65598.0,0.076301]
[1729707166279,0.197,65603.0,65596.0,0.01065]
[1729707166484,0.076298,65601.0,65600.0,0.076299]
[1729707166774,0.197,65603.0,65599.0,0.18]
[1729707166978,0.01901459,65604.0,65603.0,0.076296]
[1729707167388,0.00228737,65604.0,65603.0,0.076296]
[1729707168177,0.00228737,65604.0,65602.0,0.18]
[1729707168178,0.06914905,65604.0,65602.0,0.18]
[1729707168488,0.2789457,65603.0,65602.0,0.256297]
[1729707168687,0.11371223,65603.0,65602.0,0.256297]
[1729707168879,0.00228737,65604.0,65602.0,0.256297]
[1729707168880,0.00228737,65604.0,65602.0,0.18]
[1729707169084,0.27892915,65603.0,65602.0,0.256297]
[1729707169500,0.11371112,65603.0,65602.0,0.256297]
[1729707169786,0.11371112,65603.0,65602.0,0.713577]
[1729707170196,0.11371112,65603.0,65602.0,0.256297]
[1729707170687,0.27892915,65603.0,65602.0,0.256297]
[1729707170887,0.0547445,65613.0,65602.0,0.713577]
[1729707171097,0.076285,65613.0,65611.0,0.076286]
[1729707171293,0.076285,65612.0,65611.0,0.076286]
[1729707171484,0.076289,65609.0,65608.0,0.076287]
[1729707171793,0.0547445,65611.0,65610.0,0.076287]
[1729707171979,0.076282,65615.0,65614.0,0.076281]
[1729707173185,0.256282,65615.0,65614.0,0.076281]
[1729707173385,0.3110265,65615.0,65614.0,0.076281]
[1729707173578,0.0547445,65615.0,65614.0,0.076281]
[1729707173782,0.1310225,65618.0,65615.0,0.076281]
[1729707173978,0.0547445,65618.0,65615.0,0.076281]
[1729707174183,0.07628,65616.0,65613.0,0.18]
[1729707174497,0.18,65615.0,65613.0,0.076283]
[1729707174686,0.0547445,65614.0,65613.0,0.076283]
[1729707175193,0.0547445,65614.0,65607.0,0.18]
[1729707175391,0.18,65608.0,65596.0,0.01065]
[1729707175593,0.19674973,65619.0,65596.0,0.01065]
[1729707175594,0.076303,65597.0,65596.0,0.01065]
[1729707175892,0.13104308,65599.0,65598.0,0.076301]
[1729707176083,0.17790055,65599.0,65598.0,0.076301]
[1729707176283,0.076301,65599.0,65598.0,0.076301]
[1729707176689,0.18,65600.0,65599.0,0.0763]
[1729707177090,0.18,65603.0,65599.0,0.0763]
[1729707177790,0.076297,65602.0,65601.0,0.076298]
[1729707178395,0.18,65606.0,65598.0,0.18]
[1729707178591,0.076295,65604.0,65603.0,0.076294]
[1729707179592,0.1914,65607.0,65601.0,0.18]
[1729707179791,0.076297,65603.0,65602.0,0.076296]
[1729707179985,0.076297,65603.0,65601.0,0.18]
[1729707179986,0.076292,65606.0,65605.0,0.076292]
[1729707180388,0.076297,65602.0,65601.0,0.076297]
[1729707181891,0.076303,65597.0,65596.0,0.076303]
[1729707182198,0.18,65606.0,65598.0,0.076301]
[1729707182394,0.18,65606.0,65599.0,0.0763]
[1729707182395,0.0763,65600.0,65599.0,0.0763]
[1729707183199,0.0763,65600.0,65597.0,0.18]
[1729707183200,0.076295,65604.0,65603.0,0.076295]
[1729707183395,0.076295,65604.0,65603.0,0.256295]
[1729707183691,0.1914,65607.0,65603.0,0.18]
[1729707183997,0.267692,65607.0,65606.0,0.256292]
[1729707185391,0.267692,65607.0,65606.0,0.076292]
[1729707189188,0.267692,65607.0,65606.0,0.256292]
[1729707190195,0.267692,65607.0,65606.0,0.076292]
[1729707192896,0.1914,65607.0,65606.0,0.076292]
[1729707193200,0.01664563,65609.0,65608.0,0.07629]
[1729707193400,0.18,65617.0,65612.0,0.076283]
[1729707193401,0.076284,65613.0,65612.0,0.076283]
[1729707193600,0.076284,65613.0,65612.0,0.086973]
[1729707193795,0.2078,65616.0,65615.0,0.076282]
[1729707195002,0.2078,65616.0,65615.0,0.084272]
[1729707195003,0.28408,65616.0,65615.0,0.084272]
[1729707200016,0.28408,65616.0,65615.0,0.00799]
[1729707203006,0.74128,65616.0,65612.0,0.01069]
[1729707203214,0.256284,65613.0,65612.0,0.01069]
[1729707204203,0.076296,65603.0,65602.0,0.04555366]
[1729707204511,0.076296,65603.0,65601.0,0.076297]
[1729707204512,0.076297,65602.0,65601.0,0.12185066]
[1729707205106,0.1942,65615.0,65604.0,0.076294]
[1729707205107,0.076282,65615.0,65604.0,0.076294]
[1729707205412,0.284081,65616.0,65615.0,0.076282]
[1729707206406,0.32145691,65616.0,65615.0,0.076282]
[1729707206710,0.36830508,65616.0,65615.0,0.076282]
[1729707207010,0.03737591,65616.0,65615.0,0.076282]
[1729707210201,0.076272,65624.0,65623.0,0.076272]
[1729707210402,0.13019332,65624.0,65623.0,0.076272]
[1729707210612,0.17703459,65624.0,65623.0,0.076272]
[1729707210809,0.03737044,65624.0,65623.0,0.076272]
[1729707212110,0.256262,65632.0,65623.0,0.076272]
[1729707212304,0.03736648,65631.0,65630.0,0.076263]
[1729707213313,0.01651395,65632.0,65628.0,0.18]
[1729707213507,0.0022862,65634.0,65628.0,0.18]
[1729707213912,0.076262,65632.0,65628.0,0.18]
[1729707214102,0.076262,65632.0,65631.0,0.076263]
[1729707214303,0.076262,65632.0,65628.0,0.18]
[1729707214304,0.0022862,65634.0,65628.0,0.18]
[1729707214509,0.09530692,65634.0,65633.0,0.076261]
[1729707215506,0.01904692,65634.0,65633.0,0.076261]
[1729707216410,0.0022862,65634.0,65633.0,0.076261]
[1729707217511,0.0022862,65634.0,65624.0,0.01688831]
[1729707217512,0.0022862,65634.0,65629.0,0.076265]
[1729707217705,0.0022862,65634.0,65633.0,0.076261]
[1729707218317,0.0785462,65634.0,65633.0,0.076261]
[1729707220014,0.076276,65620.0,65619.0,0.00228574]
[1729707220203,0.076276,65620.0,65600.0,0.076298]
[1729707220204,0.256276,65620.0,65600.0,0.18]
[1729707220409,0.18,65610.0,65609.0,0.076289]
[1729707220712,0.076278,65618.0,65616.0,0.07628]
[1729707220912,0.18,65625.0,65616.0,0.18]
[1729707221109,0.18,65625.0,65622.0,0.076272]
[1729707221314,0.076272,65623.0,65622.0,0.076272]
[1729707221515,0.16048472,65623.0,65622.0,0.076272]
[1729707221819,0.16048472,65623.0,65599.0,0.5998]
[1729707221820,0.08421272,65623.0,65608.0,0.18]
[1729707222013,0.076282,65615.0,65614.0,0.076281]
[1729707222208,0.11365287,65615.0,65614.0,0.076281]
[1729707222516,0.16049472,65615.0,65614.0,0.076281]
[1729707223412,0.08421272,65615.0,65614.0,0.076281]
[1729707223814,0.03737087,65615.0,65614.0,0.076281]
[1729707224008,0.03737087,65615.0,65614.0,0.09273127]
[1729707224815,0.03737087,65615.0,65614.0,0.27273127]
[1729707225405,0.11365287,65615.0,65614.0,0.01645027]
[1729707225612,0.21523423,65615.0,65613.0,0.076284]
[1729707225810,0.0842179,65614.0,65613.0,0.076284]
[1729707226118,0.1605009,65614.0,65613.0,0.076284]
[1729707228109,0.16050604,65614.0,65613.0,0.076284]
[1729707228311,0.11365845,65614.0,65613.0,0.076284]
[1729707228509,0.076284,65613.0,65612.0,0.04573478]
[1729707228715,0.256284,65613.0,65612.0,0.12201978]
[1729707229116,0.18,65613.0,65612.0,0.12201978]
[1729707229321,0.18,65613.0,65612.0,0.076285]
[1729707229530,0.256284,65613.0,65612.0,0.076285]
[1729707231719,0.256284,65613.0,65612.0,0.12193395]
[1729707232521,0.256284,65613.0,65612.0,0.13911102]
[1729707233125,0.076284,65613.0,65612.0,0.13911102]
[1729707233314,0.256284,65613.0,65609.0,0.12193695]
[1729707233512,0.256287,65610.0,65609.0,0.076288]
[1729707234129,0.076287,65610.0,65609.0,0.076288]
[1729707234325,0.076287,65610.0,65609.0,0.12193695]
[1729707235219,0.076287,65610.0,65609.0,0.076288]
[1729707235418,0.076287,65610.0,65609.0,0.12194825]
[1729707235822,0.076287,65610.0,65609.0,0.13874928]
[1729707236024,0.076287,65610.0,65609.0,0.09308903]
[1729707237229,0.076287,65610.0,65609.0,0.13874536]
[1729707238828,0.2065,65612.0,65611.0,0.076286]
[1729707239321,0.18,65628.0,65611.0,0.22565633]
[1729707239527,0.076252,65641.0,65619.0,0.18]
[1729707239528,0.076271,65625.0,65619.0,0.18]
[1729707239825,0.076271,65625.0,65624.0,0.076271]
[1729707240025,0.09341194,65625.0,65624.0,0.076271]
[1729707240230,0.01714094,65625.0,65624.0,0.076271]
[1729707240425,0.07627,65625.0,65624.0,0.076271]
[1729707242325,0.25627,65625.0,65624.0,0.076271]
[1729707242830,0.18,65625.0,65619.0,0.04565633]
[1729707243030,0.18,65621.0,65617.0,0.12193533]
[1729707243222,0.076278,65618.0,65617.0,0.12193533]
[1729707243417,0.18997583,65618.0,65617.0,0.076279]
[1729707243823,0.076282,65615.0,65614.0,0.076282]
[1729707244127,0.076282,65615.0,65604.0,0.256294]
[1729707244128,0.076289,65609.0,65608.0,0.076289]
[1729707244325,0.15261375,65609.0,65608.0,0.076289]
[1729707244528,0.11369783,65609.0,65604.0,0.01651498]
[1729707244727,0.15071449,65607.0,65600.0,0.443199]
[1729707244932,0.11369783,65606.0,65605.0,0.076293]
[1729707245425,0.26442436,65607.0,65606.0,0.076292]
[1729707245827,0.11370987,65607.0,65606.0,0.076292]
[1729707246224,0.19000087,65607.0,65606.0,0.076292]
[1729707246931,0.11370987,65607.0,65606.0,0.076292]
[1729707247534,0.15079221,65607.0,65606.0,0.076292]
[1729707247730,0.2645018,65607.0,65606.0,0.076292]
[1729707248124,0.11370959,65607.0,65606.0,0.076292]
[1729707248319,0.15079221,65607.0,65606.0,0.076292]
[1729707248826,0.15079221,65607.0,65604.0,0.18]
[1729707248827,0.08422641,65607.0,65604.0,0.18]
[1729707249028,0.13577419,65605.0,65604.0,0.256294]
[1729707249236,0.02948318,65605.0,65604.0,0.256294]
[1729707249525,0.03737695,65605.0,65604.0,0.18]
[1729707249731,0.19000099,65608.0,65607.0,0.076291]
[1729707249928,0.19000138,65608.0,65607.0,0.076291]
[1729707250924,0.34079359,65608.0,65607.0,0.076291]
[1729707251232,0.19000138,65608.0,65607.0,0.076291]
[1729707251434,0.03810402,65608.0,65607.0,0.3315515]
[1729707252225,0.18,65611.0,65607.0,0.3315515]
[1729707252426,0.076289,65609.0,65608.0,0.25528936]
[1729707252627,0.076289,65609.0,65608.0,0.11631789]
[1729707253631,0.076289,65609.0,65608.0,0.20782303]
[1729707254226,0.076289,65609.0,65608.0,0.11631789]
[1729707254428,0.076305,65595.0,65594.0,0.076305]
[1729707254630,0.076305,65595.0,65594.0,0.21282226]
[1729707254828,0.076305,65595.0,65594.0,0.076305]
[1729707255029,0.1892,65600.0,65593.0,0.18]
[1729707255232,0.1892,65600.0,65599.0,0.2563]
[1729707255433,0.38977035,65613.0,65599.0,0.18]
[1729707255629,0.204,65612.0,65607.0,0.07622903]
[1729707255829,0.07629,65608.0,65607.0,0.07622903]
[1729707257540,0.076291,65607.0,65606.0,0.07622903]
[1729707257735,0.07629,65608.0,65601.0,0.076298]
[1729707257736,0.076297,65602.0,65601.0,0.076298]
[1729707258530,0.14316792,65602.0,65601.0,0.076298]
[1729707263347,0.076297,65602.0,65601.0,0.076298]
[1729707265043,0.204,65612.0,65601.0,0.076298]
[1729707265044,0.076283,65614.0,65613.0,0.076284]
[1729707265442,0.19892838,65617.0,65603.0,0.18]
[1729707265745,0.256287,65611.0,65601.0,0.1956]
[1729707265943,0.256287,65611.0,65609.0,0.076288]
[1729707266143,0.18,65611.0,65609.0,0.076288]
[1729707266351,0.076287,65610.0,65609.0,0.076288]
[1729707268049,0.076296,65603.0,65602.0,0.06091733]
[1729707268254,0.18,65603.0,65600.0,0.04568818]
[1729707268545,0.076299,65600.0,65599.0,0.04797447]
[1729707268752,0.076299,65600.0,65599.0,0.00228629]
[1729707269451,0.076299,65600.0,65599.0,0.04797447]
[1729707270144,0.076299,65600.0,65599.0,0.07858629]
[1729707271257,0.076299,65600.0,65599.0,0.0763]
[1729707272051,0.09332825,65600.0,65599.0,0.0763]
[1729707272447,0.09332825,65600.0,65599.0,0.12198818]
[1729707273054,0.01702925,65600.0,65597.0,0.04568818]
[1729707273348,0.076294,65598.0,65597.0,0.04568818]
[1729707273660,0.076294,65598.0,65593.0,0.13721633]
[1729707273661,0.076299,65594.0,65592.0,0.04572057]
[1729707274763,0.18,65599.0,65592.0,0.04572057]
[1729707274961,0.076301,65593.0,65591.0,0.04572057]
[1729707275159,0.18,65595.0,65591.0,0.04572494]
[1729707275160,0.076301,65592.0,65591.0,0.04572494]
[1729707275552,0.076301,65592.0,65591.0,0.0457259]
[1729707275855,0.076301,65592.0,65591.0,0.1220279]
[1729707277355,0.076301,65592.0,65591.0,0.076302]
[1729707277557,0.18,65595.0,65588.0,0.13722233]
[1729707277754,0.076304,65589.0,65588.0,0.06091733]
[1729707277951,0.18,65590.0,65585.0,0.06091733]
[1729707278158,0.18,65590.0,65587.0,0.04573094]
[1729707278351,0.18,65590.0,65578.0,0.0784337]
[1729707278352,0.076307,65587.0,65586.0,0.04573094]
[1729707278548,0.076311,65583.0,65581.0,0.04573094]
[1729707278756,0.076312,65582.0,65581.0,0.04573094]
[1729707279456,0.1857,65586.0,65580.0,0.04573094]
[1729707279762,0.076314,65581.0,65580.0,0.12204594]
[1729707279957,0.076314,65581.0,65580.0,0.18]
[1729707281753,0.076314,65581.0,65580.0,0.256315]
[1729707281948,0.076314,65581.0,65580.0,0.076315]
[1729707284761,0.076313,65584.0,65583.0,0.076309]
[1729707285063,0.076313,65584.0,65583.0,0.256309]
[1729707288654,0.01701767,65588.0,65583.0,0.256309]
[1729707288655,0.01701767,65588.0,65583.0,0.18]
[1729707288854,0.076305,65590.0,65589.0,0.076303]
[1729707289557,0.076305,65590.0,65587.0,0.18]
[1729707289558,0.01700109,65593.0,65587.0,0.18]
[1729707289757,0.1909,65598.0,65591.0,0.18]
[1729707289966,0.076294,65598.0,65597.0,0.18]
[1729707290369,0.076297,65595.0,65594.0,0.30199293]
[1729707291063,0.076297,65595.0,65594.0,0.256297]
[1729707293362,0.0763,65593.0,65592.0,0.12199593]
[1729707293567,0.0763,65593.0,65592.0,0.0763]
[1729707293866,0.0663,65593.0,65592.0,0.0763]
[1729707294270,0.18,65597.0,65591.0,0.22569593]
[1729707294574,0.076307,65587.0,65586.0,0.04569593]
[1729707294875,0.076307,65587.0,65579.0,0.35456]
[1729707294876,0.07631,65584.0,65583.0,0.04569593]
[1729707295058,0.07631,65584.0,65580.0,0.04569593]
[1729707295263,0.18,65581.0,65578.0,0.12201293]
[1729707295470,0.076316,65579.0,65578.0,0.076317]
[1729707295671,0.11375191,65579.0,65576.0,0.18]
[1729707295868,0.22685529,65577.0,65576.0,0.18]
[1729707296173,0.19007041,65577.0,65576.0,0.18]
[1729707296576,0.35585181,65577.0,65576.0,0.256319]
[1729707297366,0.19007041,65577.0,65576.0,0.256319]
[1729707299878,0.19007041,65577.0,65576.0,0.18]
[1729707300170,0.34062253,65577.0,65576.0,0.18]
[1729707300362,0.07633,65570.0,65569.0,0.076327]
[1729707300562,0.07633,65570.0,65566.0,0.18]
[1729707300563,0.076334,65563.0,65562.0,0.07862244]
[1729707300767,0.16059226,65563.0,65562.0,0.07862244]
[1729707300963,0.30321935,65563.0,65562.0,0.07862244]
[1729707301162,0.19008641,65563.0,65562.0,0.25862244]
[1729707301368,0.22685584,65563.0,65562.0,0.25862244]
[1729707301574,0.19008641,65563.0,65562.0,0.25862244]
[1729707301772,0.06688501,65563.0,65562.0,0.25862244]
[1729707301970,0.06689879,65564.0,65562.0,0.18228744]
[1729707302176,0.06689879,65563.0,65562.0,0.25862344]
[1729707302374,0.06689879,65563.0,65562.0,0.256336]
[1729707302568,0.06689879,65563.0,65562.0,0.713896]
[1729707303273,0.06689664,65563.0,65562.0,0.713896]
[1729707303675,0.16182114,65577.0,65570.0,0.076325]
[1729707303872,0.076324,65572.0,65571.0,0.38681792]
[1729707304077,0.076324,65572.0,65571.0,0.46314292]
[1729707304381,0.01673246,65583.0,65578.0,0.076317]
[1729707304583,0.076314,65581.0,65580.0,0.18]
[1729707304772,0.076314,65581.0,65580.0,0.29544831]
[1729707305078,0.1859,65590.0,65580.0,0.37176331]
[1729707305274,0.076309,65585.0,65584.0,0.07612722]
[1729707305582,0.076309,65585.0,65584.0,0.19157553]
[1729707305768,0.20685392,65586.0,65580.0,0.27135351]
[1729707305971,0.28316192,65586.0,65585.0,0.0761275]
[1729707306178,0.28316192,65586.0,65585.0,0.19114846]
[1729707306675,0.19,65586.0,65585.0,0.11502096]
[1729707306874,0.266308,65586.0,65585.0,0.11502096]
[1729707308974,0.266308,65586.0,65585.0,0.19132996]
[1729707308975,0.19,65586.0,65585.0,0.19132996]
[1729707309882,0.19,65586.0,65585.0,0.28268347]
[1729707310086,0.266308,65586.0,65585.0,0.11502096]
[1729707310773,0.266308,65586.0,65580.0,0.076314]
[1729707310774,0.076311,65583.0,65580.0,0.076314]
[1729707310967,0.1137539,65582.0,65580.0,0.076314]
[1729707311170,0.1137539,65582.0,65581.0,0.076314]
[1729707311768,0.1137539,65582.0,65579.0,0.18]
[1729707312072,0.1137539,65581.0,65580.0,0.076315]
[1729707312868,0.13555557,65581.0,65580.0,0.076315]
[1729707313073,0.076317,65579.0,65578.0,0.076317]
[1729707313382,0.14320318,65579.0,65578.0,0.076317]
[1729707314278,0.06688618,65579.0,65578.0,0.076317]
[1729707314979,0.11375544,65579.0,65578.0,0.076317]
[1729707316381,0.02949467,65579.0,65578.0,0.076317]
[1729707316578,0.076314,65581.0,65575.0,0.18]
[1729707316778,0.02949542,65580.0,65575.0,0.18]
[1729707316975,0.02949542,65579.0,65575.0,0.18]
[1729707317175,0.02949542,65578.0,65575.0,0.18]
[1729707317375,0.02949542,65577.0,65576.0,0.076319]
[1729707317883,0.10581342,65577.0,65576.0,0.076319]
[1729707318084,0.10581342,65577.0,65571.0,0.19903126]
[1729707318085,0.076322,65574.0,65573.0,0.076322]
[1729707318279,0.14321019,65574.0,65573.0,0.076322]
[1729707318783,0.076322,65574.0,65573.0,0.076322]
[1729707320287,0.076322,65574.0,65573.0,0.256322]
[1729707320694,0.076306,65588.0,65573.0,0.18]
[1729707320887,0.076316,65579.0,65578.0,0.12201091]
[1729707321384,0.076316,65579.0,65578.0,0.12201189]
[1729707321583,0.076316,65579.0,65578.0,0.076316]
[1729707322086,0.076319,65576.0,65575.0,0.07632]
[1729707322284,0.18,65576.0,65572.0,0.06090746]
[1729707322485,0.076324,65572.0,65569.0,0.06097342]
[1729707322798,0.076324,65572.0,65565.0,0.07613315]
[1729707322799,0.076327,65569.0,65568.0,0.06097342]
[1729707323178,0.18,65570.0,65566.0,0.06097342]
[1729707323486,0.18,65570.0,65567.0,0.07633]
[1729707323679,0.3822,65571.0,65567.0,0.07633]
[1729707323680,0.076329,65568.0,65567.0,0.07633]
[1729707324785,0.3822,65571.0,65566.0,0.18]
[1729707325087,0.3822,65571.0,65567.0,0.06100265]
[1729707325088,0.076329,65568.0,65567.0,0.06100265]
[1729707325386,0.076331,65566.0,65565.0,0.06100265]
[1729707325692,0.076332,65565.0,65563.0,0.06099821]
[1729707325893,0.18,65564.0,65561.0,0.07613315]
[1729707326085,0.076336,65562.0,65561.0,0.07613315]
[1729707326281,0.076338,65560.0,65559.0,0.07613315]
[1729707326486,0.076338,65560.0,65559.0,0.19228463]
[1729707326684,0.076338,65560.0,65559.0,0.15247215]
[1729707326881,0.256338,65560.0,65559.0,0.07613315]
[1729707327189,0.18,65560.0,65558.0,0.07613315]
[1729707327385,0.076341,65557.0,65556.0,0.15247515]
[1729707327684,0.076341,65557.0,65556.0,0.076342]
[1729707328186,0.076341,65557.0,65554.0,0.00228804]
[1729707328187,0.18,65557.0,65554.0,0.07842119]
[1729707328386,0.076344,65555.0,65554.0,0.00228804]
[1729707328784,0.45764,65555.0,65552.0,0.06093953]
[1729707328980,0.57994001,65556.0,65531.0,0.1814]
[1729707328981,0.076347,65552.0,65551.0,0.06093953]
[1729707329189,0.256347,65552.0,65551.0,0.06093953]
[1729707329691,0.076348,65551.0,65550.0,0.06093953]
[1729707329888,0.076348,65551.0,65544.0,0.076357]
[1729707329889,0.07635,65550.0,65549.0,0.06093953]
[1729707330190,0.25635,65550.0,65549.0,0.06093953]
[1729707331596,0.076352,65548.0,65547.0,0.06093953]
[1729707331993,0.076359,65542.0,65539.0,0.07613315]
[1729707332290,0.45768,65548.0,65533.0,0.0456816]
[1729707332291,0.18,65540.0,65533.0,0.0456816]
[1729707332488,0.076369,65533.0,65532.0,0.0456816]
[1729707332688,0.256369,65533.0,65531.0,0.04562798]
[1729707332889,0.076373,65530.0,65523.0,0.18]
[1729707333092,0.18,65532.0,65518.0,0.09307065]
[1729707333290,0.076373,65530.0,65526.0,0.076377]
[1729707333998,0.18,65532.0,65525.0,0.18]
[1729707334294,0.076373,65530.0,65527.0,0.076376]
[1729707334690,0.18,65532.0,65527.0,0.076375]
[1729707335102,0.18,65532.0,65528.0,0.076375]
[1729707335103,0.076373,65530.0,65528.0,0.076375]
[1729707335287,0.18,65532.0,65528.0,0.076375]
[1729707335493,0.256372,65532.0,65528.0,0.076375]
[1729707335694,0.076372,65531.0,65528.0,0.076375]
[1729707336387,0.18,65532.0,65530.0,0.076372]
[1729707336790,0.18,65532.0,65531.0,0.076372]
[1729707337395,0.076351,65550.0,65531.0,0.18]
[1729707337595,0.076351,65550.0,65520.0,0.444684]
[1729707337596,0.20985429,65541.0,65540.0,0.076361]
[1729707337989,0.20985429,65541.0,65530.0,0.18]
[1729707338196,0.256363,65539.0,65530.0,0.18]
[1729707338489,0.256363,65539.0,65537.0,0.076365]
[1729707338692,0.256363,65539.0,65538.0,0.076364]
[1729707338895,0.18,65539.0,65538.0,0.076364]
[1729707339499,0.18,65539.0,65534.0,0.076367]
[1729707339500,0.076365,65537.0,65534.0,0.076367]
[1729707339702,0.18,65535.0,65531.0,0.076371]
[1729707339897,0.076371,65532.0,65531.0,0.076371]
[1729707340898,0.076371,65532.0,65523.0,0.2728781]
[1729707340899,0.18,65535.0,65534.0,0.076368]
[1729707341203,0.07637,65533.0,65530.0,0.076372]
[1729707341405,0.07637,65533.0,65527.0,0.18]
[1729707342101,0.18,65535.0,65533.0,0.076368]
[1729707342295,0.18,65539.0,65534.0,0.076368]
[1729707342490,0.076375,65528.0,65521.0,0.3961]
[1729707342691,0.18,65535.0,65523.0,0.076381]
[1729707342692,0.18,65524.0,65523.0,0.076381]
[1729707342904,0.256381,65524.0,65523.0,0.076381]
[1729707343395,0.18,65524.0,65514.0,0.07613315]
[1729707343592,0.3668,65534.0,65512.0,0.076394]
[1729707343593,0.076392,65514.0,65512.0,0.076394]
[1729707343792,0.18,65513.0,65509.0,0.197]
[1729707344105,0.076391,65515.0,65513.0,0.076393]
[1729707344307,0.18,65516.0,65507.0,0.27113315]
[1729707344598,0.076389,65517.0,65510.0,0.18]
[1729707344804,0.18,65520.0,65514.0,0.076391]
[1729707345006,0.076389,65516.0,65514.0,0.076391]
[1729707345303,0.076393,65513.0,65511.0,0.076395]
[1729707345800,0.076394,65512.0,65511.0,0.076395]
[1729707346396,0.076397,65509.0,65508.0,0.076397]
[1729707346600,0.076394,65512.0,65510.0,0.076396]
[1729707346900,0.076395,65511.0,65510.0,0.076396]
[1729707347593,0.256393,65513.0,65506.0,0.00228972]
[1729707347999,0.076394,65512.0,65510.0,0.076396]
[1729707348207,0.18,65513.0,65510.0,0.076396]
[1729707348507,0.076397,65510.0,65507.0,0.076399]
[1729707348710,0.18,65508.0,65507.0,0.0764]
[1729707348902,0.14175718,65508.0,65507.0,0.0764]
[1729707350006,0.14175718,65508.0,65506.0,0.00228972]
[1729707350007,0.0764,65507.0,65506.0,0.07869072]
[1729707350305,0.0764,65507.0,65506.0,0.00228972]
[1729707350498,0.2627,65507.0,65506.0,0.00228972]
[1729707351403,0.1863,65507.0,65504.0,0.1521235]
[1729707351600,0.256402,65505.0,65504.0,0.0757205]
[1729707352201,0.18,65505.0,65504.0,0.1521235]
[1729707353201,0.18,65505.0,65504.0,0.076403]
[1729707353907,0.076396,65511.0,65509.0,0.076396]
[1729707354210,0.076396,65510.0,65508.0,0.076398]
[1729707354403,0.18,65511.0,65504.0,0.076403]
[1729707354606,0.2564,65507.0,65504.0,0.076403]
[1729707354805,0.2564,65507.0,65501.0,0.18]
[1729707355106,0.2564,65507.0,65506.0,0.076401]
[1729707355309,0.2564,65507.0,65502.0,0.076405]
[1729707355704,0.2564,65507.0,65503.0,0.076404]
[1729707356108,0.076403,65504.0,65499.0,0.076409]
[1729707356301,0.18,65501.0,65499.0,0.076409]
[1729707356704,0.18,65501.0,65489.0,0.59329031]
[1729707356913,0.18,65494.0,65492.0,0.076416]
[1729707357410,0.18,65494.0,65493.0,0.076416]
[1729707358012,0.18,65494.0,65489.0,0.59329031]
[1729707358215,0.18,65490.0,65489.0,0.66971131]
[1729707358413,0.18,65494.0,65489.0,0.59329031]
[1729707358712,0.076416,65493.0,65492.0,0.076417]
[1729707359711,0.18,65494.0,65473.0,0.18]
[1729707359908,0.076425,65485.0,65477.0,0.25597166]
[1729707360109,0.076421,65489.0,65488.0,0.076422]
[1729707360302,0.07642,65490.0,65479.0,0.076431]
[1729707360503,0.18,65481.0,65480.0,0.076431]
[1729707361719,0.18,65481.0,65477.0,0.07597166]
[1729707361919,0.076431,65481.0,65479.0,0.076432]
[1729707362215,0.09328428,65490.0,65479.0,0.076432]
[1729707362216,0.18,65480.0,65479.0,0.076432]
[1729707362411,0.01686428,65490.0,65482.0,0.076428]
[1729707362612,0.076426,65485.0,65484.0,0.076427]
[1729707362815,0.00229122,65499.0,65486.0,0.076424]
[1729707362816,0.18,65487.0,65486.0,0.076424]
[1729707363018,0.18,65497.0,65493.0,0.076415]
[1729707363219,0.18,65497.0,65487.0,0.18]
[1729707363424,0.18,65494.0,65493.0,0.076415]
[1729707363613,0.076407,65501.0,65493.0,0.33192911]
[1729707363914,0.18,65494.0,65493.0,0.076415]
[1729707364111,0.18,65494.0,65493.0,0.33203195]
[1729707364312,0.256415,65494.0,65493.0,0.25561695]
[1729707364612,0.256415,65494.0,65493.0,0.11652272]
[1729707364808,0.256415,65494.0,65493.0,0.20763547]
[1729707365216,0.894503,65494.0,65480.0,0.10660533]
[1729707365518,0.894503,65494.0,65453.0,0.07647]
[1729707365519,0.63032,65493.0,65463.0,0.10660533]
[1729707365743,0.36,65464.0,65459.0,0.076466]
[1729707365909,0.18,65469.0,65460.0,0.18]
[1729707366109,0.18,65466.0,65456.0,0.5572]
[1729707366314,0.18,65466.0,65459.0,0.07647]
[1729707366815,0.18,65466.0,65456.0,0.5572]
[1729707366816,0.18,65466.0,65456.0,0.449974]
[1729707367015,0.263559,65470.0,65456.0,0.449974]
[1729707367016,0.18,65462.0,65457.0,0.076473]
[1729707367211,0.18,65469.0,65459.0,0.256471]